Cogmind - Beta 17 @@@ ROGUE MODE // 2026.08.23 @ 13:43:40 Player: ATOM Result: Destroyed by S-10 Pest with Light Assault Rifle Performance ------------- Evolutions (0) 0 Regions Visited (2) 400 Robots Destroyed (26) 130 Value Destroyed (609) 609 Prototype IDs (5) 100 Alien Tech Used (0) 0 Bonus (-20) -20 TOTAL SCORE: 1219 Bonus ------- Friendly Fire -20 Cogmind --------- Core Integrity 0/250 Matter 296/300 Energy 125/125 System Corruption 3% Temperature Cool (0) Movement Core (300) Ox5 Location -10/Subcaves Parts ------- > --- POWER (1) -------- Light Ion Engine > --- PROPULSION (2) --- (None) > --- UTILITY (2) ------ Medium Storage Unit Hacking Suite > --- WEAPON (2) ------- Light Assault Rifle Light Cannon > --- INVENTORY (10) --- Heat Sink Targeting Computer Peak State ------------ > --- POWER ------------ Light Ion Engine > --- PROPULSION ------- Wheel Wheel > --- UTILITY ---------- Small Storage Unit Hacking Suite > --- WEAPON ----------- EM Pulse Gun Assault Rifle > --- INVENTORY -------- Light Ion Engine Light Ion Engine Light Treads Light Treads [Rating: 9] Favorites ----------- Power Light Ion Engine Engine Light Ion Engine Propulsion Light Treads Treads Light Treads Wheel Wheel Utility Hacking Suite Storage Medium Storage Unit Hackware Hacking Suite Weapon Light Assault Rifle Energy Gun EM Pulse Gun Ballistic Gun Light Assault Rifle Ballistic Cannon Light Cannon Build | -11 -10 -10 ------- Run | Yrd Mat Sub Slots Evolved . | . . . Power . | . . . Propulsion . | . . . Utility . | . . . Weapon . | . . . Parts Attached 16 | 4 10 2 Power 4 | 1 2 1 Engine 4 | 1 2 1 Core . | . . . Reactor . | . . . Propulsion 4 | 2 2 . Treads 2 | . 2 . Leg . | . . . Wheel 2 | 2 . . Hover . | . . . Flight . | . . . Utility 3 | 1 2 . Device . | . . . Storage 2 | 1 1 . Processor . | . . . Hackware 1 | . 1 . Protection . | . . . Artifact . | . . . Weapon 5 | . 4 1 Energy Gun 1 | . 1 . Energy Cannon . | . . . Ballistic Gun 2 | . 2 . Ballistic Cannon 2 | . 1 1 Launcher . | . . . Special Weapon . | . . . Impact Weapon . | . . . Slashing Weapon . | . . . Piercing Weapon . | . . . Special Melee Weapon . | . . . Unidentified Prototypes . | . . . Corrupted Parts 1 | . 1 . System Corruption 1 | . 1 . Parts Lost 8 | . 4 4 Power 2 | . 1 1 Propulsion 4 | . 2 2 Utility . | . . . Weapon 2 | . 1 1 Highest Loss Streak 3 | . 3 3 To Critical Strikes . | . . . Average Backups 3 | 2 3 3 Power 1 | . 1 . Propulsion . | 1 . . Utility 1 | . 1 2 Weapon . | . . . Tool/Special . | . . . Unused Backups 2 | . . 2 Power . | . . . Propulsion . | . . . Utility 2 | . . 2 Weapon . | . . . Tool/Special . | . . . Average Slot Usage (%) 88 | . 93 85 Engine 7 | . 13 3 Treads 23 | . 22 24 Wheel 2 | . 5 . Storage 14 | . 14 14 Hackware 13 | . 11 14 Ballistic Gun 14 | . 16 14 Ballistic Cannon 10 | . 6 14 Peak Build Rating 9 | 4 9 9 Average Rating 8 | 2 8 8 On Entrance 4 | . 4 9 Avg Prop Armor Cover (%) . | . . . Naked Turns . | . . . Heaviest Build 17 | 8 17 17 Greatest Support 40 | 20 40 40 Greatest Overweight (x) 5 | . 3 5 Average Overweight (x) . | . . . Largest Inventory Capacity 10 | 8 10 10 Average Capacity 9 | 6 8 10 Most Carried 5 | 5 5 4 Average Carried 3 | 2 3 3 Final Capacity 10 | 8 10 10 Final Carried 5 | 5 4 2 Class Distribution -------------------- 100% | Mutant Dominant Class ---------------- Mutant | -10/Materials Mutant | -10/Subcaves Resources | -11 -10 -10 ----------- Run | Yrd Mat Sub Matter Collected 988 | 168 423 397 Remotely . | . . . Salvage Created 667 | . 429 238 Parts 61 | . 43 18 Haulers Intercepted . | . . . Recyclers Shooed . | . . . Parts Field Recycled . | . . . Retrieved Matter . | . . . Parts Self-Destructed 6 | . . 6 Prevented . | . . . Parts Restored . | . . . Kills | -11 -10 -10 ------- Run | Yrd Mat Sub Combat Hostiles Destroyed 21 | . 15 6 Guns 13 | . 12 1 Cannons 8 | . 3 5 Classes Destroyed 6 | . 5 1 Worker 1 | . 1 . Operator 2 | . 2 . Watcher 2 | . 2 . Swarmer 9 | . 9 . Grunt 6 | . 6 . Subdweller 6 | . . 6 Best Kill Streak 3 | . 3 2 Combat Bots Only 3 | . 3 2 Max Kills in Single Turn 1 | . 1 1 Gunslinging . | . . . Exploded . | . . . Melee . | . . . Uniques/NPCs Destroyed . | . . . Combat | -11 -10 -10 -------- Run | Yrd Mat Sub Hostile Shots Fired 133 | . 101 32 Missed 34 | . 23 11 Hits 99 | . 78 21 Projectile 99 | . 78 21 Damage Taken 1150 | . 731 419 Core 259 | . 171 88 Absorbed by Shields . | . . . Core Remaining (%) 100 | 100 . . Volleys Fired 140 | . 87 53 Largest 2 | . 2 2 Hottest 60 | . 60 50 Shots Fired 249 | . 159 90 Gun 170 | . 134 36 Cannon 79 | . 25 54 Launcher . | . . . Special . | . . . Kinetic 222 | . 132 90 Thermal . | . . . Explosive . | . . . Electromagnetic 27 | . 27 . Robot Hit Streak 15 | . 7 15 Robot Miss Streak 5 | . 5 1 Penetration Max . | . . . Secondary Targets 2 | . 2 . Max Gunslinging Chain 1 | . 1 . Shots Hit Robots 117 | . 83 34 Core Hits 45 | . 31 14 Critical Kills . | . . . Critical Parts Destroyed 1 | . 1 . Critical Strikes 4 | . 3 1 Destroy 1 | . 1 . Blast 3 | . 2 1 Melee Attacks . | . . . Impact . | . . . Slashing . | . . . Piercing . | . . . Sneak Attacks . | . . . Combat Hostiles . | . . . Follow-up Attacks . | . . . Damage Inflicted 1411 | . 1064 347 Guns 831 | . 745 86 Cannons 557 | . 296 261 Explosions 23 | . 23 . Melee . | . . . Ramming . | . . . Kinetic 1175 | . 828 347 Thermal 23 | . 23 . Explosive . | . . . Electromagnetic 213 | . 213 . Impact . | . . . Slashing . | . . . Piercing . | . . . Highest Corruption 3 | . 3 3 Average Corruption 2 | . 2 3 Corruption Purged . | . . . Corruption Blocked . | . . . Effects 52 | . 21 31 Message Errors 10 | . 6 4 Matter Fused 11 | . 4 7 Heat Flow Errors 8 | . 3 5 Energy Discharges 6 | . 2 4 Data Loss (minor) 8 | . 3 5 Data Loss (major) 3 | . . 3 Misfires 5 | . 3 2 Weapon Failures 1 | . . 1 Overload Shots . | . . . Overflow Damage 10 | . 10 . Projectiles 10 | . 10 . Explosions . | . . . Melee . | . . . Knockbacks 8 | . 4 4 Impact . | . . . Kinetic 8 | . 4 4 Secondary . | . . . Self-Inflicted Damage 11 | . 11 . Shots 1 | . 1 . Rammed . | . . . Targets Rammed . | . . . Kicked . | . . . Crushed . | . . . Highest Temperature 276 | . 276 226 Average Temperature 51 | . 46 89 Received Heat Transfer 240 | . 186 54 Siege Activations . | . . . Martial Activations . | . . . Shielding Activations . | . . . Robots Disrupted . | . . . Combat Hostiles . | . . . Robots Corrupted . | . . . Combat Hostiles . | . . . Parts Fried . | . . . Impact Corruptions . | . . . Robots Melted . | . . . Combat Hostiles . | . . . Parts Melted . | . . . Heat Transferred 50 | . 50 . Parts Sabotaged . | . . . Parts Stolen . | . . . Parts Stripped . | . . . Power Chain Reactions 1 | . 1 . Alert | -11 -10 -10 ------- Run | Yrd Mat Sub Maximum Alert Level . | . . . Low Security (%) 100 | 100 100 . Level 1 . | . . . Level 2 . | . . . Level 3 . | . . . Level 4 . | . . . Level 5 . | . . . High Security . | . . . Max Security . | . . . Peak Influence 124 | . 124 . Initial . | . . . Average 39 | . 40 . Influence Increases 552 | . 537 15 Destroy 0b10 Robot/C 300 | . 300 . Destroy 0b10 Robot/NC 25 | . 25 . Destroy Leader 54 | . 54 . Successful Hack 19 | . 19 . Disable Machine 15 | . 15 . Destroy Structure 4 | . 4 . Lose Combat Pursuer 135 | . 120 15 Influence Decreases 537 | . 532 5 Entered New Map 3 | . . 3 Time Decay 494 | . 492 2 Lost Part 40 | . 40 . Squads Dispatched 2 | . 2 . Investigation 1 | . 1 . Extermination . | . . . Reinforcement 1 | . 1 . Assault . | . . . Garrison . | . . . Intercept . | . . . Searches Triggered . | . . . Construction Impeded . | . . . Haulers Reinforced . | . . . Active Scanning Responses . | . . . Cargo Convoy Interrupts . | . . . Stealth | -11 -10 -10 --------- Run | Yrd Mat Sub Distress Signals 2 | . 2 . Communications Jammed . | . . . Distress Signals . | . . . Times Spotted 45 | . 37 8 Peak Tracking Total 4 | . 4 2 Tactical Retreats 8 | . 7 1 Traps | -11 -10 -10 ------- Run | Yrd Mat Sub Traps Triggered 2 | . 2 . Indirectly . | . . . Trap Hack Attempts . | . . . Triggered . | . . . Disarmed . | . . . Reprogrammed . | . . . Reused . | . . . Traps Extracted . | . . . Installed . | . . . Triggered . | . . . Machines | -11 -10 -10 ---------- Run | Yrd Mat Sub Machines Disabled 1 | . 1 . Max in Single Turn 1 | . 1 . Machines Repaired . | . . . Machines Dismantled . | . . . Machines Sabotaged . | . . . Overloaded Fab Kills . | . . . Hacking | -11 -10 -10 --------- Run | Yrd Mat Sub Machines Accessed 11 | . 10 1 Terminals 8 | . 8 . Fabricators . | . . . Repair Stations . | . . . Recycling Units 2 | . 2 . Scanalyzers . | . . . Garrison Access . | . . . Total Hacks 27 | . 22 5 Successful 17 | . 12 5 Failed 10 | . 10 . Catastrophic 2 | . 2 . Database Lockouts . | . . . Manual . | . . . Terminals 20 | . 20 . Fabricators . | . . . Repair Stations . | . . . Recycling Units 2 | . 2 . Scanalyzers . | . . . Garrison Access . | . . . Terminal Hacks 15 | . 10 5 Record 6 | . 1 5 Prototype ID Bank 3 | . 3 . Emergency Access Points 2 | . 2 . Recall Reinforcements 1 | . 1 . Hauler Manifests 1 | . 1 . Zone Layout 2 | . 2 . Fabricator Hacks . | . . . Repair Station Hacks . | . . . Recycling Unit Hacks 2 | . 2 . Report Inventory 2 | . 2 . Scanalyzer . | . . . Garrison Access Hacks . | . . . Unauthorized Hacks . | . . . Terminals . | . . . Fabricators . | . . . Repair Stations . | . . . Recycling Units . | . . . Scanalyzers . | . . . Garrison Access . | . . . Data Cores Recovered 1 | . 1 . Used . | . . . Hacking Detections 8 | . 8 . Full Trace Events 1 | . 1 . Feedback Events . | . . . Feedback Blocked . | . . . Robot Schematics Acquired . | . . . Robots Built . | . . . Authchips . | . . . Time . | . . . Total Robot Build Rating . | . . . Part Schematics Acquired . | . . . Parts Built . | . . . Authchips . | . . . Time . | . . . Total Part Build Rating . | . . . Part Studies Acquired . | . . . Parts Repaired . | . . . Time . | . . . Parts Recycled . | . . . Recycled Matter . | . . . Retrieved Matter . | . . . Retrieved Components . | . . . Parts Scanalyzed . | . . . Part Schematics Acquired . | . . . Parts Damaged . | . . . Bothacking | -11 -10 -10 ------------ Run | Yrd Mat Sub Used RIF Installer . | . . . Robots Hacked . | . . . Non-combat . | . . . Combat . | . . . Robot Hacks Applied . | . . . Relay Couplers Released . | . . . Fabnet Peak Effective % . | . . . Robots Rewired . | . . . Allies Hacked . | . . . Hacks Repelled . | . . . Allies | -11 -10 -10 -------- Run | Yrd Mat Sub Total Allies . | . . . Largest Group . | . . . Highest-Rated Group . | . . . Highest-Rated Ally . | . . . Total Orders . | . . . Ally Attacks . | . . . Total Damage . | . . . Kills . | . . . Allies Corrupted . | . . . Allies Melted . | . . . Intel | -11 -10 -10 ------- Run | Yrd Mat Sub Active Infowar (turns) . | . . . Robot Analysis Total . | . . . Derelict Logs Recovered 1 | . . 1 Drone Launches . | . . . Drone Recoveries . | . . . Exploration | -11 -10 -10 ------------- Run | Yrd Mat Sub Turns Passed 3657 | 59 1500 2098 Spaces Moved 2024 | 58 809 1157 Core 88 | 7 3 78 Treads 1710 | . 631 1079 Legs . | . . . Wheels 226 | 51 175 . Hover . | . . . Flight . | . . . Fastest Speed 50 | 50 80 160 Average Speed 156 | 76 142 169 Slowest Speed 300 | 80 200 300 Overloaded Moves . | . . . Propulsion Burnouts . | . . . Robots Hopped . | . . . Potential Cave-ins . | . . . Cave-ins Triggered . | . . . Exploration Rate (%) 46 | 3 98 37 Regions Visited 2 Branch Regions 1 Pre-discovered Areas . | . . . Known Exits Taken . | . . . Unknown Exits Taken 2 | 1 1 . Scrap Searched . | . . . Spaces Dug . | . . . Terrain Destroyed 3 | . 3 . Melee . | . . . Projectile . | . . . AOE 3 | . 3 . Terrain Rammed . | . . . Walls Destroyed . | . . . Machines Disabled . | . . . Actions | -11 -10 -10 --------- Run | Yrd Mat Sub Total 2290 | 72 1006 1212 Wait 91 | 2 89 . Move 2022 | 57 808 1157 Hop . | . . . Pick Up 18 | 9 9 . Fast Attach . | . . . Attach 13 | 4 7 2 Detach . | . . . Swap 3 | . 3 . Drop 3 | . 3 . Fire 140 | . 87 53 Melee . | . . . Ram . | . . . Kick . | . . . Crush . | . . . Escape Stasis . | . . . Rewire . | . . . Trap . | . . . Miscellaneous . | . . . Route ------- -11/Scrapyard -10/Materials (discovered 5 exits: [*Mat x3] / [*Min] / *Sub) -10/Subcaves History --------- Turn | Location | Event 16 | -11/Scrapyard | Discovered new exit (range 13) 60 | -11/Scrapyard | Entered Materials 320 | -10/Materials | Build established: Mutant 355 | -10/Materials | Discovered new exit (range 14) 366 | -10/Materials | Lost 3 parts (2n1w) 505 | -10/Materials | Discovered new exit (range 8) 548 | -10/Materials | Core integrity fell below 50% 698 | -10/Materials | Discovered new exit (range 3) 1041 | -10/Materials | Discovered new exit (range 12) 1046 | -10/Materials | Discovered new exit (range 9) 1560 | -10/Materials | Entered Subcaves 1561 | -10/Subcaves | Approached by a straggling Scientist 1713 | -10/Subcaves | A swath of the cavern ceiling suddenly collapsed 1905 | -10/Subcaves | Learned Materials garrison access intel 1929 | -10/Subcaves | Visited Clippyterm 1934 | -10/Subcaves | Learned 40 Factory zone layouts 1934 | -10/Subcaves | Learned Factory stockpile data 3409 | -10/Subcaves | Core integrity fell below 20% 3446 | -10/Subcaves | Lost 3 parts (2n1w) 3658 | -10/Subcaves | Destroyed by S-10 Pest with Light Assault Rifle Last Messages --------------- 03439_ Acquired 2 matter. 03442_ Acquired 23 matter. 03444_ Subatomizers dissect the Sub. Power Source. PV-T10(c): "I think it's somewhere southeast of here" 03449_ System corrupted: Heat flow error (+266). 03456_ Subatomizers dissect the Disposable Heat Sink. PV-T10(c): "I think it's somewhere southeast of here" 03565_ SAIDKX1P= BV3BZGBOHGCVUFD&JZGDY PV-T10(c): "I think it's somewhere southeast of here" 03606_ System corrupted: FCS attempts to trigger Lgt. Cannon. 03606_ System corrupted: Lgt. Cannon misfires. 03606_ PV-T10(c) knocked back. PV-T10(c): "I think it's somewhere southeast of here" Map ----- +----------------------------------------------------+ | ?# ## ##??????????????????????????????? | | ?# ### #???????????????????????????????? | | ?# ## ##???###????????????????????????? | | # #??# #????????????????????????? | | ## ## ### #????????????????????????? | | ?### ## ## ## #????????????????????????? | | ???######## ## #????????????????????????? | | ?????????## #?????????????????????????? | | ????????## #?????????????????????????? | | ????????# ## ##?????????????????????????? | | ????????# ### #??????????????????????????? | | ????????# ##### #??????????????????????????? | | ????????## ##?# #??????????????????????????? | | ?????????## ### #????????????????????????? | | ??????????# ## #????????????????????????? | | ??????????#### ## ##????????????????????????? | | ????????????## #### ##?????????????????????????? | | ????????????# ####??????????????????????????? | | ????????????# ##???????????????????????????? | | ????????????#### #???????????????????????????? | | ???????????????### ##??????????????????????????? | | ?????????????????### ###??##????????????????????? | | ??????????????????# ### #????????????????????? | | ??????????????????## ###??????????????????? | | ???????????????????#### ##?????????????????? | | ??????????????????????## @ #?????????????????? | | ???????????????????????## # #????????????? | | ????????????????????????## ? # # #??????????? | | ?????????????????????????? ?##?##????#??????????? | | ?????????????????????????? %????????????????????? | | ?????????????????????????? ! ???????????????????? | | ??????????????????????????? ??????????????????? | | ???????????????????????????% #?????????????????? | | ???????????????????????????!s ##?????????????????? | | ??????????????????????????? s%#??????????????????? | | ???????????????????????????? % ??????????????????? | | ????????????????????????????# ??????????????????? | | ????????????????????????????? ?????????????????? | | ????????????????????????????? ?????????????????? | | ?????????????????????????????????????????????????? | | ?????????????????????????????????????????????????? | | ?????????????????????????????????????????????????? | | ?????????????????????????????????????????????????? | | ?????????????????????????????????????????????????? | | ?????????????????????????????????????????????????? | | ?????????????????????????????????????????????????? | | ?????????????????????????????????????????????????? | | ?????????????????????????????????????????????????? | | ?????????????????????????????????????????????????? | | ?????????????????????????????????????????????????? | +----------------------------------------------------+ Best States ------------- Heat Dissipation 25 Energy Generation 10 Energy Capacity 125 Matter Stores 300 Matter Capacity 300 Sight Range 16 Terrain Scan Density 10 Evasion (%) 44 Recoil Reduction 2 Offensive Hacking 10 Item Schematics ----------------- None Robot Schematics ------------------ None Fabricated ------------ Nothing Repaired ---------- Nothing Studied --------- None Alien Tech Used ----------------- None Achievements -------------- None Challenges ------------ None Game ------ Seed BattleComponentStrikerail Manual? 0 Play Time 00:24:56 Cumulative 28.1 hours Start 2026.08.23 @ 13:20:10 End 2026.08.23 @ 13:43:40 Sessions 1 Manual Loads 0 Difficulty Rogue Special Mode None Game No. 42 Rogue 42 Adventurer 0 Explorer 0 Win Type - Total 0 Types 0/0/0/0/0/0/0/0/0/0 Lore% 15 Gallery% 18 Achievement% 18 Wizard Run 0 Options --------- Layout 1 ASCII 0 Keyboard 0 Movement Mouse Keybinds 0 Fullscreen 1 Font 16/SmallcapsGlow Map View 50x40 Zoom Use 0% Tactical HUD 1 Map Filters NONE Filters NONE Steam SD RUN: bd960a91-22a8-47ca-9c65-02415db08469